{"text_format":"1","workbook":"xlsx","n_sheets":7,"sheets":["Tableau 1 ","Tableau 2","Tableau 3 ","Graphique 1","Graphique 2","Tableau A","Tableau B "],"not_rendered":{"charts":0,"images":2,"macros":0,"external_links":0,"defined_names":10,"comments":0,"pivot_tables":0},"unopened":[],"bounds":{"document_bytes":16777216,"sheet_cells":100000,"rows_first":2000,"rows_last":500,"rows_between":2000,"halvings":0,"cell_chars":16384,"cell_head_chars":4096},"cells_cut":0,"cells_raw":0,"read":"whole","date_system":"1900"}

{"sheet":"Tableau 1 ","index":0,"n_rows":23,"n_cols":19,"rows_kept":23,"cut":false,"hidden":false,"merged":[[0,12,0,18],[0,0,0,10],[2,13,2,14],[3,13,3,14],[2,1,2,5],[18,0,18,10],[2,6,2,10],[3,6,3,8],[3,1,3,3],[3,15,3,16],[2,15,2,18],[18,12,18,18],[19,12,19,22],[20,12,20,22],[22,0,22,10],[19,0,19,10],[21,0,21,10],[20,0,20,10]]}
["Tableau 1 - Salariés ayant bénéficié de la revalorisation du Smic au 1er janvier 2017 et au 1er janvier 2018, par taille d’entreprise",null,null,null,null,null,null,null,null,null,null,null,"Ancien champ - 2018"]
[]
[null,"Au 1er janvier 2017 (ancien champ)",null,null,null,null,"Au 1er janvier 2018 (nouveau champ)",null,null,null,null,null,null,"nouveau champ",null,"ancien champ"]
[null,"Ensemble des bénéficiaires",null,null,"Temps complet","Temps \npartiel","Ensemble des bénéficiaires",null,null,"Temps complet","Temps \npartiel",null,null,"Ensemble des bénéficiaires",null,"Ensemble des bénéficiaires",null,"Temps complet","Temps \npartiel"]
[null,"Effectifs","En % des effectifs totaux","Part de femmes \nparmi les \nbénéficiaires","En % des effectifs \nà temps \ncomplet","En % des effectifs \nà temps \npartiel","Effectifs","En % des effectifs totaux","Part de femmes \nparmi les \nbénéficiaires","En % des effectifs \nà temps \ncomplet","En % des effectifs \nà temps \npartiel",null,null,"En % des effectifs totaux","Part de femmes \nparmi les \nbénéficiaires","En % des effectifs totaux","Part de femmes \nparmi les \nbénéficiaires","En % des effectifs \nà temps \ncomplet","En % des effectifs \nà temps \npartiel"]
["1 à 9 salariés",720000,24.3,52.3,19.7,35.299999999999997,830000,26.5,53.4,21.7,37.700000000000003,null,"1 à 9 salariés",26.5,53.4,26,52.7,21.3,37.4]
["1 salarié",120000,31.3,56.9,25.8,39.5,150000,34.4,60.9,27.2,43.8,null,"1 salarié",34.4,60.9,33.5,59,26.6,43.2]
["2 salariés",120000,29.3,56,23.8,39.299999999999997,140000,31.9,55.8,27.5,39.700000000000003,null,"2 salariés",31.9,55.8,31.7,55.4,27.3,39.700000000000003]
["de 3 à 5 salariés",280000,25,52.4,20.399999999999999,36.200000000000003,300000,26.1,52.4,22.1,36.299999999999997,null,"de 3 à 5 salariés",26.1,52.4,25.8,52.1,21.8,36]
["de 6 à 9 salariés",200000,18.899999999999999,46.9,15.9,28.9,240000,21.5,48.5,17.8,33.799999999999997,null,"de 6 à 9 salariés",21.5,48.5,21.1,48.3,17.399999999999999,33.700000000000003]
["10 salariés ou plus",930000,7.4,57.4,5.0999999999999996,19.399999999999999,1150000,8.1,61.9,5.4,20.2,null,"10 salariés ou plus",8.1,61.9,7.6,60.2,5.3,19.899999999999999]
["de 10 à 19 salariés",140000,10.1,49.7,7.8,21,160000,10.5,55.1,7.4,23.5,null,"de 10 à 19 salariés",10.5,55.1,10,53.3,7.5,23]
["de 20 à 49 salariés",230000,11.6,55.4,7.5,30.9,280000,12.8,60.6,7.9,31.5,null,"de 20 à 49 salariés",12.8,60.6,11.5,57.8,7.4,31]
["de 50 à 99 salariés",140000,11.6,59.5,7.8,28.4,180000,12.2,65.3,7,30.4,null,"de 50 à 99 salariés",12.2,65.3,12.1,66,7.5,31.5]
["de 100 à 249 salariés",120000,7.3,57.4,5.7,16.8,140000,7.3,60.3,5.6,15.2,null,"de 100 à 249 salariés",7.3,60.3,8.1999999999999993,59.9,6.3,19.399999999999999]
["de 250 à 499 salariés",70000,5.7,58.9,4.3,14.8,110000,7.9,65,5.5,20.6,null,"de 250 à 499 salariés",7.9,65,7.1,60.8,5.3,18.399999999999999]
["500 salariés ou plus",230000,4.5,62.7,2.9,12.9,280000,5,64.599999999999994,3.5,12.1,null,"500 salariés ou plus",5,64.599999999999994,4.3,63,3.1,10.9]
["Total",1650000,10.6,55.2,7.5,24.2,1980000,11.5,58.3,8.1,24.9,null,"Total",11.5,58.3,10.8,57.1,7.7,24.8]
["Note : les tailles d'entreprise sont définies en fonction du nombre de salariés comptabilisés en personnes physiques, quel que soit leur temps de travail.",null,null,null,null,null,null,null,null,null,null,null,"Champ au 1er janvier 2018 : ensemble des salariés sauf apprentis, stagiaires, intérimaires ; ensemble des secteurs sauf agriculture, administration, activités des ménages, activités extraterritoriales ; France (hors Mayotte)"]
["Lecture : dans les entreprises de 1 à 9 salariés, 830 000 personnes (soit 26,5 % des salariés) ont bénéficié de la revalorisation du Smic au 1er janvier 2018 ; dans ces mêmes entreprises, 37,7 % des salariés à temps partiel ont été concernés. Dans ces mêmes entreprises (voir encadré 2), à champ inchangé, 26,0 % des salariés ont bénéficié de la revalorisation du Smic ; 37,4 % des effectifs à temps partiel ont été concernés.",null,null,null,null,null,null,null,null,null,null,null,"Champ au 1er janvier 2017 : idem hors syndicats de copropriété, associations loi 1901 de l'action sociale, et Drom."]
["Champ au 1er janvier 2018 : ensemble des salariés sauf apprentis, stagiaires, intérimaires ; ensemble des secteurs sauf agriculture, administration, activités des ménages, activités extraterritoriales ; France (hors Mayotte)",null,null,null,null,null,null,null,null,null,null,null,"Source : Dares, enquêtes Acemo."]
["Champ au 1er janvier 2017 : idem hors syndicats de copropriété, associations loi 1901 de l'action sociale,et Drom."]
["Source : Dares, enquêtes Acemo."]

{"sheet":"Tableau 2","index":1,"n_rows":67,"n_cols":7,"rows_kept":67,"cut":false,"hidden":false,"merged":[[2,2,4,2],[3,3,3,4],[1,1,1,5],[0,0,0,7],[66,0,66,7],[64,0,64,7],[63,0,63,7],[60,0,60,7],[61,0,61,7],[59,0,59,7],[65,0,65,7],[62,0,62,7],[3,5,3,6],[2,3,2,6],[2,0,4,0],[2,1,4,1]]}
["Tableau 2 - Salariés ayant bénéficié de la revalorisation du Smic au 1er janvier 2017 et au 1er janvier 2018, par branche professionnelle regroupée \net selon les principales conventions collectives de branche"]
[null,null,null,null,null,null,"En %"]
["Niveau agrégé Cris1","Conventions regroupées pour l'information statistique (Cris) \net principales conventions collectives (IDCC)","Effectifs salariés au \n31 décembre 2015 *","Proportion de salariés ayant bénéficié de la revalorisation du Smic au 1er janvier 2017 et au 1er janvier 2018"]
[null,null,null,"Ensemble des salariés",null,"Salariés à temps partiel"]
[null,null,null,"1er janvier 2017 (ancien champ)","1er janvier 2018 (nouveau champ)","1er janvier 2017 (ancien champ)","1er janvier 2018 (nouveau champ)"]
["A ","MÉTALLURGIE ET SIDÉRURGIE",1622100,3,3,7,6]
["dont ","0054 - Métallurgie Région Parisienne",234600,2,2,6,4]
[null,"0650 - Métallurgie cadres",453700,"ε","ε","ε","ε"]
["B ","BÂTIMENT ET TRAVAUX PUBLICS ***",1351300,8,10,24,26]
["dont ","1596 - Bâtiment ouvriers jusqu'à 10 Salariés",320800,19,20,31,33]
[null,"1597 - Bâtiment ouvriers plus de 10 Salariés",470100,4,5,11,12]
[null,"1702 - Travaux publics ouvriers",165700,3,3,15,21]
["C ","CHIMIE ET PHARMACIE",512700.00000000006,4,5,11,15]
["dont ","0044 - Industries chimiques",218300,2,2,4,3]
[null,"0176 - Industrie pharmaceutique",129100,"ε","ε","ε","ε"]
[null,"1996 - Pharmacie d'officine",119200,11,16,17,21]
["D ","PLASTIQUES, CAOUTCHOUC ET COMBUSTIBLES",218400,4,3,7,7]
["dont ","0292 - Plasturgie",118300,6,4,9,9]
["E ","VERRE ET MATÉRIAUX DE CONSTRUCTION",196800,6,5,13,14]
["F ","BOIS ET DÉRIVÉS",249000,11,11,20,21]
["G ","HABILLEMENT, CUIR, TEXTILE",470900,23,21,39,33]
["dont ","0675 - Succursales de vente au détail d'habillement",119800,20,17,30,24]
["H ","CULTURE ET COMMUNICATION",533700,11,9,31,21]
["I ","AGRO-ALIMENTAIRE",834800,13,12,26,26]
["dont ","0843 - Boulangeries pâtisseries artisanales",135700,21,22,27,28]
["J ","COMMERCE DE GROS ET IMPORT-EXPORT",383700,5,6,17,16]
["dont ","0573 - Commerces de gros",341600,5,6,17,17]
["K ","COMMERCE PRINCIPALEMENT ALIMENTAIRE",690600,15,25,21,37]
["dont ","2216 - Commerce détail et gros à prédominance alimentaire",690300,15,25,21,37]
["L ","COMMERCE DE DÉTAIL PRINCIPALEMENT NON ALIMENTAIRE",384500,16,14,32,26]
["dont ","1517 - Commerces de détail non alimentaire",106600,25,20,44,30]
["M ","SERVICES DE L'AUTOMOBILE ET DES MATÉRIELS ROULANTS",506800,8,10,22,25]
["dont ","1090 - Services de l'automobile",422700,9,10,22,26]
["N ","HÔTELLERIE, RESTAURATION ET TOURISME",981300,30,33,54,58]
["dont ","1501 - Restauration rapide",171000,65,62,75,74]
[null,"1979 - Hôtels Cafés Restaurants",610000,21,29,37,53]
["O ","TRANSPORTS (HORS STATUTS)",888200,10,9,11,16]
["dont ","0016 - Transports routiers",679500,13,12,14,19]
["P ","SECTEUR SANITAIRE ET SOCIAL",2000200,16,13,23,22]
["dont ","0029 - Hospitalisation à but non lucratif",343900,"nd",15,"nd",19]
[null,"0413 - Établissements pour personnes inadaptées",430200,"nd",4,"nd",6]
[null,"1518 - Animation",114100,"nd",12,"nd",13]
[null,"2264 - Hospitalisation privée",272300,17,14,18,17]
[null,"2941 - Aide, accompagnement soins et services à domicile",213800,"nd",32,"nd",36]
["Q ","BANQUES, ÉTABLISSEMENTS FINANCIERS ET ASSURANCES",749300,2,2,3,4]
["dont ","1672 - Sociétés d'assurances",140700,"ε","ε","ε","ε"]
[null,"2120 - Banques",218300,"ε","ε","ε","ε"]
["R ","IMMOBILIER ET ACTIVITÉS TERTIAIRES LIÉES AU BÂTIMENT",320900,10,12,20,27]
["dont ","1527 - Immobilier",141300,16,14,29,25]
["S ","BUREAUX D'ÉTUDES ET PRESTATIONS DE SERVICES AUX ENTREPRISES",986100,8,6,26,21]
["dont ","1486 - Bureaux d'études techniques SYNTEC",857100,3,2,12,8]
["dont ","2098 - Prestataires de services secteur tertiaire",127100,36,38,55,59]
["T ","PROFESSIONS JURIDIQUES ET COMPTABLES",256399.99999999997,5,5,10,10]
["dont ","0787 - Cabinets d'experts comptables",138400,4,5,7,8]
["U ","NETTOYAGE, MANUTENTION, RÉCUPÉRATION ET SÉCURITÉ",663200,6,4,6,4]
["dont ","1351 - Prévention et sécurité",160800,11,8,15,13]
[null,"3043 - Entreprises de propreté et services associés",371200,5,3,4,3]
["V ","BRANCHES NON AGRICOLES DIVERSES",620900,18,17,28,25]
[]
["* Ces effectifs sont issus d'une exploitation exhaustive des DADS 2015 . Ils sont relatifs à l'ensemble des salariés, hors agriculture, administration, activités des ménages, activités extraterritoriales. Pour les regroupements CRIS allant de W à Y (statuts, conventions d'entreprise, intérimaires, conventions agricoles, fonction publique, etc.), le taux de couverture par les enquêtes Acemo (encadré 2) est faible (27 %). Aussi, les données relatives à ces regroupements ne figurent pas ici."]
["** Proportion couverte par les enquêtes Acemo en 2018 (encadré 2), c'est-à-dire apprentis, stagiaires, intérimaires, agriculture, administration, activités des ménages et activités extraterritoriales."]
["*** Ne figure pas ici la convention collective \"Bâtiment ETAM\" (IDCC 2609), dont l'effectif salarié est de 151 300 en 2015. En effet, cette convention collective n'est pratiquement jamais appliquée de façon principale dans les établissements de la Cris \"Bâtiment et travaux publics\" (où 50 % des salariés sont ouvriers), ce qui y rend impossible une estimation de la proportion de salariés bénéficiaires de la revalorisation du Smic par les enquêtes Acemo."]
["ε : proportion inférieure à 1 %."]
["Notes :\n- pour l'estimation des effectifs salariés, la convention collective est propre au salarié (en principe, la convention collective est déterminée en fonction de l'activité principale de l'établissement, mais, à titre dérogatoire, certains secteurs ont développé des conventions catégorielles, ce qui conduit à une coexistence de plusieurs conventions collectives dans le même établissement) ; dans les enquêtes Activité et conditions d'emploi de la main-d'oeuvre (Acemo), la convention collective est celle appliquée de façon principale par l'établissement (en termes de nombre de salariés couverts).\n- seules figurent ici les conventions collectives dont l'effectif salarié au 31 décembre 2014 est supérieur à 100 000 et dont les données statistiques sont diffusables (encadré 3)."]
["Lecture : la Cris \"Métallurgie et Sidérurgie\" couvre 1 622 100 salariés au 31 décembre 2015 ; dans les entreprises qui appliquent de façon principale une convention collective de ce regroupement Cris, 3 % des salariés ont bénéficié de la revalorisation du Smic au 1er janvier 2018 ; dans ces mêmes entreprises, 6 % des salariés à temps partiel ont été concernés."]
["Champ : \n- colonnes 3 et 4 : ensemble des salariés ; ensemble des secteurs sauf agriculture, administration, activités des ménages, activités extraterritoriales ; France entière.\n- colonnes au 1er janvier 2018 : ensemble des salariés sauf apprentis, stagiaires, intérimaires ; ensemble des secteurs sauf agriculture, administration, activités des ménages, activités extraterritoriales ; France (hors Mayotte)                                                                                                                                                                                                                                                                                                                                                  - colonnes au 1er janvier 2017 :  idem hors syndicats de copropriété, associations loi 1901 de l'action sociale, et Drom.\n"]
["Sources :  Insee, DADS (colonnes 3 et 4) ; Dares, enquêtes Acemo (colonnes suivantes)."]

{"sheet":"Tableau 3 ","index":2,"n_rows":33,"n_cols":5,"rows_kept":33,"cut":false,"hidden":false,"merged":[[27,6,27,11],[28,6,28,11],[29,6,29,11],[32,0,32,4],[3,1,3,2],[3,3,3,4],[28,0,28,4],[29,0,29,4],[31,0,31,4],[30,0,30,4],[0,0,0,4],[25,0,25,4],[26,0,26,4],[2,1,2,4],[27,0,27,4]]}
["Tableau 3 - Salariés ayant bénéficié de la revalorisation du Smic au 1er janvier 2017 et au 1er janvier 2018, par secteur d'activité"]
[null,null,null,null,"En %"]
[null,"Proportion de salariés ayant bénéficié de la revalorisation du Smic au 1er janvier 2017 et au 1er janvier 2018"]
[null,"Ensemble des salariés",null,"Salariés à temps partiel"]
[null,"1er janvier 2017 (ancien champ)","1er janvier 2018 (nouveau champ)","1er janvier 2017 (ancien champ)","1er janvier 2018 (nouveau champ)"]
["Industrie",5.3,5.0999999999999996,13.1,12.1]
["Industries extractives",5.9,2.2000000000000002,"NS ***","NS ***"]
["Industrie manufacturière",5.7,5.5,14.1,13]
["Production et distribution d'électricité, de gaz, de vapeur et d'air conditionné",0.8,0.4,3,1.6]
["Production et distribution d'eau ; assainissement, gestion des déchets et dépollution",2.9,3.6,6.9,7.5]
["Construction",8.8000000000000007,9.9,24.1,26.1]
["Services",12.2,13.1,25,25.6]
["Commerce ; réparation d'automobiles et de motocycles",12.6,15.5,25.1,30.8]
["Transports et entreposage",6.5,6.7,9.1,13.1]
["Hébergement et restauration",31.2,34.4,54.1,58.5]
["Information et communication",2.6,2.5,7.9,8.6]
["Activités financières et d'assurance",3.6,2.9,9.1,7.1]
["Activités immobilières",10.3,11.4,21.6,25.2]
["Activités spécialisées, scientifiques et techniques",6.4,5.3,22.3,15.6]
["Activités de services administratifs et de soutien",11.7,11.9,12.3,13.1]
["Enseignement *",5.9,5.2,8.5,6.4]
["Santé humaine et action sociale **",21.1,15.5,33,25.1]
["Arts, spectacles et activités récréatives",14.7,13.7,18.2,17.5]
["Autres activités de services",24.9,23.5,36.799999999999997,34.5]
["Ensemble",10.6,11.5,24.2,24.9]
["* Hors enseignement public."]
["** Hors fonction publique hospitalière."]
["*** Résultat non significatif. Dans ce secteur d'activité, moins d’un millier de salariés concernés sont à temps partiel."]
["Note : les données sont présentées en nomenclature NAF rév. 2 en 21 postes (NAF 21) ; du fait du champ des enquêtes Acemo, quatre postes de la NAF 21 ne sont pas représentés ici (agriculture, administration, activités des ménages et activités extraterritoriales). "]
["Lecture : dans le secteur des activités immobilières, 11,4 % des salariés ont bénéficié de la revalorisation du Smic au 1er janvier 2018 (10,6 % à champ constant ; voir encadré 2); dans ce même secteur, 25,2 % des salariés à temps partiel ont été concernés (23,4 % à champ constant)."]
["Champ au 1er janvier 2018 : ensemble des salariés sauf apprentis, stagiaires, intérimaires ; ensemble des secteurs sauf agriculture, administration, activités des ménages, activités extraterritoriales ; France (hors Mayotte)"]
["Champ au 1er janvier 2017 : idem hors syndicats de copropriété, associations loi 1901 de l'action sociale, et Drom."]
["Source : Dares, enquêtes Acemo."]

{"sheet":"Graphique 1","index":3,"n_rows":34,"n_cols":4,"rows_kept":34,"cut":false,"hidden":false,"merged":[[31,0,32,0],[0,0,1,3]]}
["Graphique 1 - Proportion de salariés concernés par les relèvements du Smic ou de la GMR** et hausse du Smic"]
[]
[]
["Année","Valeur du Smic\n(*)","% de bénéficiaires","Evolution  en € \ncourants"]
[1991,4.9800000000000004,8.6,4.9800000000000004]
[1992,5.19,8.6,{"$f":"(B6/B5-1)*100","v":4.2168674698795261}]
[1993,5.31,8.1,{"$f":"(B7/B6-1)*100","v":2.3121387283236761}]
[1994,5.42,8.1999999999999993,{"$f":"(B8/B7-1)*100","v":2.0715630885122405}]
[1995,5.64,11.2,{"$f":"(B9/B8-1)*100","v":4.0590405904058935}]
[1996,5.78,10.7,2.4822695035461084]
[1997,6.01,14.1,3.9792387543252428]
[1998,6.13,12.6,1.9966722129783676]
[1999,6.21,12.8,1.3050570962479524]
[2000,6.41,13.6,3.2206119162640823]
[2001,6.67,13.9,4.0561622464898583]
[2002,6.83,14,2.398800599700146]
[2003,7.19,14.1,5.2708638360175808]
[2004,7.61,15.3,5.8414464534075172]
[2005,8.0299999999999994,16.3,5.5190538764783081]
[2006,8.27,15.1,2.9887920298879322]
[2007,8.44,12.9,2.0556227327690468]
[2008,8.7100000000000009,13.9,3.199052132701441]
[2009,8.82,10.6,1.2629161882893092]
[2010,8.86,9.8000000000000007,0.45351473922901064]
[2011,"9,00",10.6,1.5801354401805856]
["2012 *",9.19,11.1,2.1111111111111081]
[2013,9.43,12.3,2.6115342763873839]
[2014,9.5299999999999994,10.8,1.0604453870625585]
[2015,9.61,11.1,0.8394543546694555]
[2016,9.67,10.5,0.62434963579605096]
[2017,9.76,10.6,0.93071354705274167]
[2018,"9,88",10.8,1.2295081967213184]
[null,"9,88",11.5,{"$f":"(B33/B31-1)*100","v":1.2295081967213184}]
["* converti en € avant 2001"]

{"sheet":"Graphique 2","index":4,"n_rows":30,"n_cols":5,"rows_kept":30,"cut":false,"hidden":false,"merged":[[0,0,1,4]]}
["Graphique 2 - Proportion de femmes parmi les bénéficiaires de la revalorisation du Smic au 1er janvier 2018, par branche professionnelle regroupée"]
[]
[]
["Cris","Proportion de femmes parmi les salariés \n(DADS 2015)","Proportion de femmes parmi les bénéficiaires de la revalorisation du Smic","Rapport","Écart"]
["A",22.33,37,{"$f":"C5/B5","v":1.6569637259292433},{"$f":"C5-B5","v":14.670000000000002}]
["B",11.45,17,1.4847161572052403,{"$f":"C6-B6","v":5.5500000000000007}]
["C",56.35,82,1.4551907719609583,25.65]
["D",29.66,44,1.4834794335805799,14.34]
["E",22.56,37,1.6400709219858156,14.440000000000001]
["F",30.47,34,1.1158516573679029,3.5300000000000011]
["G",66.47,68,1.0230179028132993,1.5300000000000011]
["H",45.22,55,1.2162759840778417,9.7800000000000011]
["I",43.74,56,1.2802926383173296,12.259999999999998]
["J",35.51,43,1.2109264995775839,7.490000000000002]
["K",58.05,68,1.1714039621016366,9.9500000000000028]
["L",50.41,56,1.1108906962904186,5.5900000000000034]
["M",22,34,1.5454545454545454,12]
["N",47.75,54,1.130890052356021,6.25]
["O",22.7,21,0.92511013215859039,-1.6999999999999993]
["P",76.73,81,1.0556496806985534,4.269999999999996]
["Q",59.99,72,1.2002000333388898,12.009999999999998]
["R",58.51,68,1.1621944966672364,9.490000000000002]
["S",37.42,67,1.7904863709246392,29.58]
["T",73.180000000000007,80,1.0931948619841485,6.8199999999999932]
["U",41.66,36,0.86413826212193956,-5.6599999999999966]
["V",61.12,84,1.37434554973822,22.880000000000003]
[]
[]
[]
[null,null,"i"]

{"sheet":"Tableau A","index":5,"n_rows":22,"n_cols":7,"rows_kept":22,"cut":false,"hidden":false,"merged":[[20,0,20,10],[21,0,21,10],[0,0,1,6],[3,1,3,2],[3,3,3,6],[4,1,4,2],[4,3,4,4],[19,0,19,10]]}
["Tableau A - Résultats au 1er janvier 2018 sur l'ancien champ : proportion de bénéficiaires de la revalorisation du Smic (en %)"]
[]
[]
[null,"Nouveau champ",null,"Ancien champ"]
[null,"Ensemble des bénéficiaires",null,"Ensemble des bénéficiaires",null,"Temps complet","Temps \npartiel"]
[null,"En % des effectifs totaux","Part de femmes \nparmi les \nbénéficiaires","En % des effectifs totaux","Part de femmes \nparmi les \nbénéficiaires","En % des effectifs \nà temps \ncomplet","En % des effectifs \nà temps \npartiel"]
["1 à 9 salariés",26.5,53.4,26,52.7,21.3,37.4]
["1 salarié",34.4,60.9,33.5,59,26.6,43.2]
["2 salariés",31.9,55.8,31.7,55.4,27.3,39.700000000000003]
["de 3 à 5 salariés",26.1,52.4,25.8,52.1,21.8,36]
["de 6 à 9 salariés",21.5,48.5,21.1,48.3,17.399999999999999,33.700000000000003]
["10 salariés ou plus",8.1,61.9,7.6,60.2,5.3,19.899999999999999]
["de 10 à 19 salariés",10.5,55.1,10,53.3,7.5,23]
["de 20 à 49 salariés",12.8,60.6,11.5,57.8,7.4,31]
["de 50 à 99 salariés",12.2,65.3,12.1,66,7.5,31.5]
["de 100 à 249 salariés",7.3,60.3,8.1999999999999993,59.9,6.3,19.399999999999999]
["de 250 à 499 salariés",7.9,65,7.1,60.8,5.3,18.399999999999999]
["500 salariés ou plus",5,64.599999999999994,4.3,63,3.1,10.9]
["Total",11.5,58.3,10.8,57.1,7.7,24.8]
["Champ au 1er janvier 2018 : ensemble des salariés sauf apprentis, stagiaires, intérimaires ; ensemble des secteurs sauf agriculture, administration, activités des ménages, activités extraterritoriales ; France (hors Mayotte)"]
["Champ au 1er janvier 2017 : idem hors syndicats de copropriété, associations loi 1901 de l'action sociale, et Drom."]
["Source : Dares, enquêtes Acemo."]

{"sheet":"Tableau B ","index":6,"n_rows":29,"n_cols":5,"rows_kept":29,"cut":false,"hidden":false,"merged":[[28,0,28,10],[2,1,2,2],[2,3,2,4],[0,0,1,0],[26,0,26,10],[27,0,27,10]]}
["Tableau B - Résultats au 1er janvier 2018 sur l'ancien champ : proportion de bénéficiaires de la revalorisation du Smic (en %)"]
[]
[null,"Nouveau champ",null,"Ancien champ"]
[null,"Ensemble des salariés","Salariés à temps partiel","Ensemble des salariés","Salariés à temps partiel"]
["Industrie",5.0999999999999996,12.1,4.9000000000000004,11.4]
["Industries extractives",2.2000000000000002,"ns ***",2.2000000000000002,"ns ***"]
["Industrie manufacturière",5.5,13,5.3,12.3]
["Prod. et distrib. d'électricité, de gaz, de vapeur et d'air conditionné",0.4,1.6,0.4,1.6]
["Prod. et distrib. d'eau ; assainissement, gestion  déchets et dépollution",3.6,7.5,3.5,6.2]
["Construction",9.9,26.1,9.4,25.8]
["Services",13.1,25.6,12.5,25.7]
["Commerce ; réparation d'automobiles et de motocycles",15.5,30.8,15.4,30.3]
["Transports et entreposage",6.7,13.1,6.1,11]
["Hébergement et restauration",34.4,58.5,33.6,57.4]
["Information et communication",2.5,8.6,2.4,8]
["Activités financières et d'assurance",2.9,7.1,2.8,7]
["Activités immobilières",11.4,25.2,10.6,23.4]
["Activités spécialisées, scientifiques et techniques",5.3,15.6,4.9000000000000004,15.2]
["Activités de services administratifs et de soutien",11.9,13.1,10.199999999999999,10.4]
["Enseignement *",5.2,6.4,4.5,5.6]
["Santé humaine et action sociale **",15.5,25.1,19.2,29.6]
["Arts, spectacles et activités récréatives",13.7,17.5,12.7,17.5]
["Autres activités de services",23.5,34.5,24,36.9]
["Ensemble",11.5,24.9,10.8,24.8]
["* Hors enseignement public."]
["* Hors fonction publiqe hospitalière."]
["Champ au 1er janvier 2018 : ensemble des salariés sauf apprentis, stagiaires, intérimaires ; ensemble des secteurs sauf agriculture, administration, activités des ménages, activités extraterritoriales ; France (hors Mayotte)"]
["Champ au 1er janvier 2017 : idem hors syndicats de copropriété, associations loi 1901 de l'action sociale,et Drom."]
["Source : Dares, enquêtes Acemo."]